Cogmind - Beta 9.2 @@@ ROGUE MODE // 2019.12.21 @ 01:09:02 Player: Fleshy Vegetable Bird Result: Destroyed self with Rocket Launcher Performance ------------- Evolutions (0) 0 Regions Visited (2) 400 Robots Destroyed (24) 120 Value Destroyed (525) 525 Prototype IDs (0) 0 Alien Tech Used (0) 0 Bonus (0) 0 TOTAL SCORE: 1045 Bonus ------- None Cogmind --------- Core Integrity 0/250 Matter 227/300 Energy 250/250 System Corruption 0% Temperature Cool (0) Movement Rolling (110) Ox1 Location -10/Mines Parts ------- > --- POWER (1) -------- Ion Engine > --- PROPULSION (2) --- Compact Wheel > --- UTILITY (2) ------ Small Storage Unit Medium Storage Unit > --- WEAPON (2) ------- Light Cannon Rocket Launcher > --- INVENTORY (10) --- Ion Engine Ion Engine Light Nuclear Core Small Storage Unit Hacking Suite Mining Laser Peak State ------------ > --- POWER ------------ Ion Engine > --- PROPULSION ------- Compact Wheel > --- UTILITY ---------- Small Storage Unit Medium Storage Unit > --- WEAPON ----------- Light Cannon Rocket Launcher > --- INVENTORY -------- Ion Engine Ion Engine Light Nuclear Core Small Storage Unit Hacking Suite Mining Laser [Rating: 8] Favorites ----------- Power Ion Engine Engine Ion Engine Propulsion Wheel Wheel Wheel Utility Small Storage Unit Storage Small Storage Unit Weapon Assault Rifle Energy Gun EM Pulse Gun Ballistic Gun Assault Rifle Ballistic Cannon Light Cannon Launcher Grenade Launcher Build | -11 -10 -10 ------- Run | Scr Mat Min Slots Evolved . | . . . Power . | . . . Propulsion . | . . . Utility . | . . . Weapon . | . . . Parts Attached 25 | 7 16 2 Power 3 | 1 2 . Engine 3 | 1 2 . Core . | . . . Reactor . | . . . Propulsion 9 | 3 6 . Treads . | . . . Leg . | . . . Wheel 9 | 3 6 . Hover . | . . . Flight . | . . . Utility 2 | 1 1 . Device . | . . . Storage 2 | 1 1 . Processor . | . . . Hackware . | . . . Protection . | . . . Artifact . | . . . Weapon 11 | 2 7 2 Energy Gun 1 | 1 . . Energy Cannon . | . . . Ballistic Gun 5 | 1 4 . Ballistic Cannon 1 | . . 1 Launcher 4 | . 3 1 Special Weapon . | . . . Impact Weapon . | . . . Slashing Weapon . | . . . Piercing Weapon . | . . . Special Melee Weapon . | . . . Unidentified Prototypes . | . . . Parts Lost 11 | . 8 3 Power 2 | . 2 . Propulsion 4 | . 3 1 Utility . | . . . Weapon 5 | . 3 2 Highest Loss Streak 6 | . 6 2 Average Slot Usage (%) 69 | . 65 85 Engine 7 | . 6 14 Wheel 21 | . 22 16 Storage 17 | . 15 28 Energy Gun 1 | . 2 . Ballistic Gun 13 | . 13 13 Ballistic Cannon 2 | . . 12 Launcher 4 | . 5 . Naked Turns . | . . . Heaviest Build 24 | 11 21 24 Greatest Support 26 | 26 26 26 Greatest Overweight (x) 2 | 2 2 1 Average Overweight (x) . | . . . Largest Inventory Capacity 10 | 6 10 10 Average Capacity 7 | 5 6 10 Most Carried 7 | 4 6 7 Average Carried 3 | 1 3 6 Final Capacity 10 | 6 10 10 Final Carried 6 | 2 5 6 Class Distribution -------------------- 100% | Mutant Dominant Class ---------------- Mutant | -10/Materials Mutant | -10/Mines Resources | -11 -10 -10 ----------- Run | Scr Mat Min Matter Collected 732 | 181 384 167 Remotely . | . . . Salvage Created 820 | 77 534 209 Parts 50 | 4 36 10 Haulers Intercepted 2 | . 2 . Recyclers Shooed . | . . . Parts Field Recycled . | . . . Retrieved Matter . | . . . Parts Self-Destructed . | . . . Prevented . | . . . Kills | -11 -10 -10 ------- Run | Scr Mat Min Combat Hostiles Destroyed 16 | . 11 5 Guns 11 | . 7 4 Cannons 1 | . . 1 AOE 4 | . 4 . Classes Destroyed 6 | 2 4 . Tunneler 2 | 1 1 . Hauler 2 | . 2 . Recycler 2 | 1 . 1 Operator 2 | . 2 . Swarmer 5 | . 2 3 Grunt 11 | . 9 2 Best Kill Streak 6 | 2 4 6 Combat Bots Only 5 | . 3 5 Max Kills in Single Turn 2 | 1 2 1 Gunslinging . | . . . Exploded 2 | . 2 . Melee . | . . . Uniques/NPCs Destroyed . | . . . Combat | -11 -10 -10 -------- Run | Scr Mat Min Damage Taken 1074 | . 763 311 Core 251 | . 172 79 Absorbed by Shields . | . . . Core Remaining (%) 100 | 100 . . Volleys Fired 111 | 7 90 14 Largest 2 | 2 2 2 Hottest 60 | 60 60 55 Shots Fired 146 | 14 110 22 Gun 136 | 14 106 16 Cannon 5 | . . 5 Launcher 5 | . 4 1 Special . | . . . Kinetic 118 | 7 90 21 Thermal . | . . . Explosive 5 | . 4 1 Electromagnetic 23 | 7 16 . Robot Hit Streak 12 | 4 12 10 Robot Miss Streak 9 | 2 6 9 Penetration Max . | . . . Secondary Targets 2 | . 1 1 Max Gunslinging Chain 1 | . 1 1 Shots Hit Robots 85 | 8 66 11 Core Hits 37 | 3 25 9 Critical Hits . | . . . Critical Kills . | . . . Critical Parts Destroyed . | . . . Melee Attacks . | . . . Impact . | . . . Slashing . | . . . Piercing . | . . . Sneak Attacks . | . . . Combat Hostiles . | . . . Follow-up Attacks . | . . . Damage Inflicted 1451 | 109 1115 227 Guns 1164 | 109 883 172 Cannons 55 | . . 55 Explosions 232 | . 232 . Melee . | . . . Ramming . | . . . Kinetic 975 | 37 711 227 Thermal . | . . . Explosive 232 | . 232 . Electromagnetic 244 | 72 172 . Impact . | . . . Slashing . | . . . Piercing . | . . . Highest Corruption . | . . . Average Corruption . | . . . Corruption Purged . | . . . Overload Shots . | . . . Overflow Damage . | . . . Projectiles . | . . . Explosions . | . . . Melee . | . . . Knockbacks . | . . . Impact . | . . . Kinetic . | . . . Secondary . | . . . Self-Inflicted Damage 41 | . . 41 Shots 1 | . . 1 Rammed . | . . . Targets Rammed . | . . . Kicked . | . . . Crushed . | . . . Highest Temperature 49 | . 49 16 Average Temperature 20 | . 23 7 Received Heat Transfer 525 | . 402 123 Siege Activations . | . . . Robots Corrupted . | . . . Combat Hostiles . | . . . Parts Fried . | . . . Impact Corruptions . | . . . Robots Melted . | . . . Combat Hostiles . | . . . Parts Melted 1 | . . 1 Heat Transferred . | . . . Parts Sabotaged . | . . . Parts Stolen . | . . . Parts Stripped . | . . . Power Chain Reactions . | . . . Missiles Intercepted . | . . . Alert | -11 -10 -10 ------- Run | Scr Mat Min Peak Influence 247 | 10 247 169 Average Influence 116 | 3 118 153 Maximum Alert Level 1 | . 1 . Low Security (%) 93 | 100 90 100 Level 1 6 | . 9 . Level 2 . | . . . Level 3 . | . . . Level 4 . | . . . Level 5 . | . . . High Security . | . . . Max Security . | . . . Squads Dispatched 3 | . 3 . Investigation . | . . . Extermination . | . . . Reinforcement 3 | . 3 . Assault . | . . . Garrison . | . . . Intercept . | . . . Construction Impeded . | . . . Haulers Reinforced . | . . . Stealth | -11 -10 -10 --------- Run | Scr Mat Min Distress Signals 2 | . 2 . Communications Jammed . | . . . Distress Signals . | . . . Times Spotted 40 | . 26 14 Peak Tracking Total 9 | . 5 9 Tactical Retreats 1 | . . 1 Traps | -11 -10 -10 ------- Run | Scr Mat Min Traps Triggered 4 | . 4 . Indirectly . | . . . Trap Hack Attempts . | . . . Triggered . | . . . Disarmed 3 | . 3 . Reprogrammed . | . . . Reused . | . . . Traps Extracted . | . . . Installed . | . . . Triggered . | . . . Machines | -11 -10 -10 ---------- Run | Scr Mat Min Machines Disabled . | . . . Max in Single Turn . | . . . Machines Sabotaged . | . . . Garrisons Compromised . | . . . Overloaded Fab Kills . | . . . Fab Network Shutdowns . | . . . Hacking | -11 -10 -10 --------- Run | Scr Mat Min Machines Accessed 3 | . 3 . Terminals 3 | . 3 . Fabricators . | . . . Repair Stations . | . . . Recycling Units . | . . . Scanalyzers . | . . . Garrison Access . | . . . Total Hacks 7 | . 7 . Successful 5 | . 5 . Failed 2 | . 2 . Catastrophic . | . . . Database Lockouts . | . . . Manual 8 | . 8 . Terminals 7 | . 7 . Fabricators . | . . . Repair Stations . | . . . Recycling Units . | . . . Scanalyzers . | . . . Garrison Access . | . . . Terminal Hacks 2 | . 2 . Branch Access Points 1 | . 1 . Disarm Traps 1 | . 1 . Fabricator Hacks . | . . . Repair Station Hacks . | . . . Recycling Unit Hacks . | . . . Scanalyzer . | . . . Garrison Access Hacks . | . . . Unauthorized Hacks 8 | . 8 . Terminals 3 | . 3 . Assimilate 1 | . 1 . Botnet 2 | . 2 . Fabricators . | . . . Repair Stations . | . . . Recycling Units . | . . . Scanalyzers . | . . . Garrison Access . | . . . Data Cores Recovered . | . . . Used . | . . . Hacking Detections 2 | . 2 . Full Trace Events . | . . . Feedback Events . | . . . Feedback Blocked . | . . . Robot Schematics Acquired . | . . . Robots Built . | . . . Matter . | . . . Time . | . . . Total Robot Build Rating . | . . . Part Schematics Acquired . | . . . Parts Built . | . . . Matter . | . . . Time . | . . . Total Part Build Rating . | . . . Parts Repaired . | . . . Time . | . . . Parts Recycled . | . . . Recycled Matter . | . . . Retrieved Matter . | . . . Retrieved Components . | . . . Parts Scanalyzed . | . . . Part Schematics Acquired . | . . . Parts Damaged . | . . . Bothacking | -11 -10 -10 ------------ Run | Scr Mat Min Used RIF Installer . | . . . Robots Hacked . | . . . Non-combat . | . . . Combat . | . . . Robot Hacks Applied . | . . . Relay Couplers Released . | . . . Robots Rewired . | . . . Allies Hacked . | . . . Hacks Repelled . | . . . Allies | -11 -10 -10 -------- Run | Scr Mat Min Total Allies 1 | . 1 . Largest Group 1 | . 1 1 Highest-Rated Group 10 | . 10 10 Highest-Rated Ally 10 | . 10 10 Total Orders . | . . . Ally Attacks . | . . . Total Damage . | . . . Kills . | . . . Allies Corrupted . | . . . Allies Melted . | . . . Intel | -11 -10 -10 ------- Run | Scr Mat Min Robot Analysis Total . | . . . Derelict Logs Recovered 1 | . . 1 Drone Launches . | . . . Drone Recoveries . | . . . Exploration | -11 -10 -10 ------------- Run | Scr Mat Min Turns Passed 928 | 70 672 186 Spaces Moved 681 | 39 507 135 Core 21 | 16 5 . Treads . | . . . Legs . | . . . Wheels 660 | 23 502 135 Hover . | . . . Flight . | . . . Fastest Speed 50 | 50 80 90 Average Speed 88 | 82 83 108 Slowest Speed 150 | 150 150 110 Overloaded Moves . | . . . Propulsion Burnouts . | . . . Robots Hopped . | . . . Cave-ins Triggered . | . . . Exploration Rate (%) 37 | 3 79 30 Regions Visited 2 Branch Regions 1 Pre-discovered Areas . | . . . Known Exits Taken 1 | . 1 . Unknown Exits Taken 1 | 1 . . Scrap Searched 1 | . . 1 Spaces Dug . | . . . Terrain Destroyed 23 | . 19 4 Melee . | . . . Projectile . | . . . AOE 23 | . 19 4 Actions | -11 -10 -10 --------- Run | Scr Mat Min Total 862 | 62 646 154 Wait 15 | . 15 . Move 679 | 38 506 135 Hop . | . . . Pick Up 31 | 9 19 3 Fast Attach . | . . . Attach 24 | 6 16 2 Detach . | . . . Swap 1 | 1 . . Drop 1 | 1 . . Fire 111 | 7 90 14 Melee . | . . . Ram . | . . . Kick . | . . . Crush . | . . . Escape Stasis . | . . . Rewire . | . . . Trap . | . . . Miscellaneous . | . . . Route ------- -11/Scrapyard -10/Materials (discovered 3 exits: [*Mat x2] / *Min) -10/Mines (discovered 1 exit: [*Mat]) History --------- Turn | Location | Event 36 | -11/Scrapyard | Discovered new exit (range 15) 71 | -11/Scrapyard | Entered Materials 239 | -10/Materials | Core integrity fell below 50% 256 | -10/Materials | Lost 6 parts (2p2n2w) 315 | -10/Materials | Build established: Mutant 347 | -10/Materials | Discovered new exit (range 16) 425 | -10/Materials | Discovered new exit (range 13) 464 | -10/Materials | Identified exit to Mines 743 | -10/Materials | Entered Mines 743 | -10/Mines | Accompanied by 1 ally 828 | -10/Mines | Discovered new exit (range 9) 855 | -10/Mines | Learned location of 1 exit from Materials 869 | -10/Mines | Received a Rocket Launcher from a helpful Derelict 886 | -10/Mines | Assembled infested the area 920 | -10/Mines | Core integrity fell below 20% 929 | -10/Mines | Destroyed self with Rocket Launcher Last Messages --------------- laser when you travel the depths." 00865_ KG-DTA(g): "Pshh... whatever." 00866_ KG-DTA(g): "Everyone knows a good old rocket launcher goes a long way." 00867_ KG-DTA(g): "Need to get rid of a swarm? Done. Need a big hole in the wall? Done." 00868_ KG-DTA(g): "Need a small hole in the wall? Leave that to the mining laser wimps, I say!" 00869_ KG-DTA(g): "Would you like a rocket launcher? I know I would if I were you, so I'm going to lend you mine." 00869_ KG-DTA(g) slips back into the shadows. 00872_ Acquired Rocket Launcher. 00886_ ALERT: Infestation in the mines, dispatching Demolisher response squad. 00905_ as-84127 sneak attacks. 00905_ Technician 1a system corrupted by crushing effect. 00914_ K-01 Serf destroyed. 00916_ Assault Rifle destroyed. 00926_ G-47 Trooper heat spikes uncontrollably. 00927_ G-47 Trooper overheating. Map ----- +----------------------------------------------------+ | ???????????????????????????????????## | | ???????????????????????????????????# | | ???????????????????????????????????# #### # | | ???????????????????????????????????# ###??### ### | | ??????????????????????????????????## ######?# #?? | | ??????????????????????????????????# #?# #?? | | ??????????????????????????????????# #?# #?? | | ??????????????????????????????????# = ! #?# #?? | | ??????????????????????????????????# #?# #?? | | ????????????????????????????????? # #?# ### | | ???????????????????????????????? # %*== #?# | | ???????????????????????????????? #####%####?#### | | ???????????????????????????????? #???#=#?###???# | | ???????????????????????????????? #???#%### #?## | | ???????????????????????????????? #???#*## ## | | ???????????????????????????????? ##??#= | | ???????????????????????????????? ??? ### | | ???????????????????????????????# #???###?## | | ???????????????????????????????# #????????## | | ???????????????????????????????# #?????????## | | ?????????????????????????????### ###????????## | | ????????????????????????????## ##????????# | | ???????????????????????????## gg #????????# | | ??????????????????????????## #????????## | | ????????????????????????## aa #??????????## | | ????????????????????????#@ ## ##???????????# | | ????????????????????????# #?# ##????????????# | | ????????????????????????# ##?# #?????????????# | | ????????????????????????####???# #####?????????# | | ???????????????????????????????# ##????????# | | ???????????????????????????????# #????????# | | ???????????????????????????????### = #????#####| | | ?????????????????????????????????##%* ##????# ! | | | ?????????????????????????????????##! ##?????# ###! | | ????????????????????????????????## ! #??????# #?# | | ????????????????????????????????# #??????# #?# | | ????????????????????????????????# #??????# #?# | | ????????????????????###########?## ##??????# #?# | | ??????????????# #??# ##?????### ### | | ????????????????????######### #### #?????## ## | | ????????????????????????????# #????## | | ????????????????????????????###### ###### ## | | ?????????????????????????????????# ## | | ?????????????????????????????????# | | ?????????????????????????????????##### #### | | ?????????????????????????????????????## #####??? | | ??????????????????????????????????????#####??????? | | ?????????????????????????????????????????????????? | | | | | +----------------------------------------------------+ Best States ------------- Heat Dissipation 25 Energy Generation 10 Energy Capacity 250 Matter Stores 300 Matter Capacity 300 Sight Range 16 Terrain Scan Density 10 Evasion (%) 50 Item Schematics ----------------- None Robot Schematics ------------------ None Fabricated ------------ Nothing Alien Tech Used ----------------- None Achievements -------------- None Challenges ------------ None Game ------ Seed FieldInsulationCompactor Manual? 0 Play Time 00:10:49 Cumulative 277.6 hours Start 2019.12.20 @ 20:54:32 End 2019.12.21 @ 01:09:02 Sessions 2 Manual Loads 0 Difficulty Rogue Special Mode None Game No. 320 Rogue 320 Adventurer 0 Explorer 0 Win Type - Total 3 Types 1/1/0/1/0/0/0 Lore% 65 Gallery% 83 Achievement% 63 Wizard Run 0 Options --------- ASCII 0 Keyboard 0 Movement Numpad Keybinds 0 Fullscreen 1 Font 16/Terminus Map View 75x55 Tactical HUD 1 Map Filters NONE Filters NONE Steam 1 RUN: a7f1bd36-bd06-49f8-9f70-10799d036145